Workbook

Sheet 請求書提出について
B2: 請求書提出時のお願い
B4: 1 | C4: この請求書用紙(Excel版)をダウンロードして、ファイル保存を行ってから使用して下さい。
B5: 2 | C5: 業者名、金額等は黄色のセルのところに入力して下さい。
B6: 3 | C6: 請求書は、原本を毎月4日までに玉川組本社・総務部管理課へ提出して下さい。
C7: (本社で一括管理をしておりますので現場に請求書を提出しないでください。)
B8: 4 | C8: 請求書はA4でそれぞれ1部ずつ提出して下さい。(総括・明細書)
B9: 5 | C9: 契約している場合は、出来高内訳書を添付して下さい。
B10: 6 | C10: 印刷は片面印刷で行って下さい。
C11: プリンターによってはA4用紙に収まらない場合がございますので余白等で調整して下さい。
B13: 《請求書 総括》
B15: 1 | C15: 対象部門を○で囲って下さい
C16: ・工事 ・・・・・ | E16: 工事部門 （工事に関係する全ての請求）
C17: ・機材 ・・・・・ | E17: 機材部 （工事以外の機械・燃料等の請求）
C18: ・一般 ・・・・・ | E18: 総務部 （上記以外の本社分の請求）
B19: 2 | C19: 本体金額欄に、8％・10％・非課税項目を分けて、税抜金額を記入して下さい。
B20: 3 | C20: 消費税と合計は自動計算されますが、ずれが生じた場合は手入力で修正をお願いします。
B21: 4 | C21: 取引銀行欄は必ず記入して下さい。普通・当座どちらか該当する方に忘れずにチェックをして下さい。
B22: 5 | C22: 社印は忘れずに押印して下さい。
B23: 6 | C23: 追加の請求書（総括）が必要な場合は左上のボタンを押してシートを追加して下さい。
B25: ※ | C25: 単独工事は工事毎に明細書を作成し、その合計を総括1枚に記入して下さい。
C26: JV工事はJV毎に総括と明細をつけて下さい。
C28: 【例】JV工事2件・単独工事5件の場合
C29: JV工事①→総括・明細書 各1枚
C30: JV工事②→総括・明細書 各1枚
C31: 単独工事→総括 1枚 ・ 明細書 5枚（各工事毎に1枚ずつ）
C33: この場合全部で総括3枚・明細書7枚となります。
B35: 《明細書》
B37: 1 | C37: 税抜き金額で記入して下さい。
B38: 2 | C38: 注文書を取り交わしてるご請求の際は「 ○月出来高 」とし、本体合計一式を記入し
C39: 弊社契約出来高内訳表を一緒に添付して下さい。
B40: 3 | C40: 請負以外の請求においては明細書に請求明細ををそのままご記入いただくか、
C41: 「 別紙明細書のとおり 」として、本体合計額を一式で記入し、御社の明細書を添付して下さい。
C42: 明細が記入・添付されていない場合は事務処理上お支払いが翌月になる場合も
C43: ございますのでお忘れのないようお願い致します。
B44: 4 | C44: 追加の請求書（明細）が必要な場合は左上のボタンを押してシートを追加して下さい。
B46: 《契約出来高内訳表》
B48: 1 | C48: 消費税と合計は自動計算されますが、ずれが生じた場合は手入力で修正をお願いします。
B49: 2 | C49: 8％・10％の出来高がある場合は、それぞれに出来高内訳表を添付して下さい。
B50: 3 | C50: 注文書で取り決めた支払い条件を必ず記入して下さい。
B51: 4 | C51: 出来高明細がある場合は、それも添付して下さい。
B54: ※ご不明な点がございましたら、管理課 高川まで連絡お願い致します。
C56: ＴＥＬ 0123-33-1133

Sheet 消費税対策版 (総括) 見本
Y1: 原 価
L2: 請 求 書 （総 括） | Y2: 立 替
Y3: （請求先）
X5: 令和 | Z5: 元 | AC5: 年 | AG5: 月 | AK5: 日
B8: 株 式 会 社 玉 川 組 御 中
R9: 請 求 者 | T9: 住 所 | W9: 恵庭市○○町○○番地
C11: 下 記 の と お り 請 求 し ま す 。 | T11: 氏 名 | W11: 株式会社 ○○建設
B13: 請求金額￥ | H13: =I47 -> 3180000
A15: 工 事 名 | E15: ○○宅舗装工事
T16: 電 話 | AC16: 登録番号
E18: 請求内訳（請求明細書 | K18: 7 | M18: 枚） | T18: 取引銀行 | W18: ○○ | AA18: 銀行 | AC18: ○○ | AF18: 支店 | AK18: 口座番号
AK19: 1234567
A21: （ 部門 ： 工事 ・ 機材 ・ 一般 ） | T21: 請求額合計 （ 枚/ | AK21: ）
A23: 項 目 | I23: 金 額 | R23: 相 殺 | W23: 前 渡 金
A26: 消費税 8% | F26: 本 体 | I26: 1000000 | W26: 未収入金
F28: 税 | I28: =+ROUND(I26*0.08,0) -> 80000
W29: 売掛金
F30: 税 込 | I30: =+SUM(I26:P29) -> 1080000
R32: 送 料 ・ 値 引
A33: 消費税 10% | F33: 本 体 | I33: 1000000
F35: 税 | I35: =+ROUND(I33*0.1,0) -> 100000 | R35: 振 込 | V35: 北洋・道銀・信金 その他（ ）
F37: 税 込 | I37: =+SUM(I33:P36) -> 1100000
R38: 手 形 ・ Ｆ ・ 小切手 ・ 集金 | V38: 期日（ / ）
A40: 非課税・税外 | F40: 本 体 | I40: 1000000
A43: 合 計 | F43: 本 体 | I43: =+I26+I33+I40 -> 3000000
F45: 税 | I45: =+I28+I35 -> 180000
F47: 税 込 | I47: =+SUM(I43:P46) -> 3180000
A52: 決 裁 欄 | I52: 経 理 | P52: 専 務 | U52: 建設部・建築部 | AE52: 総 務 部

Sheet 消費税対策版 (総括)
Y1: 原 価
L2: 請 求 書 （総 括） | Y2: 立 替
Y3: （請求先）
X5: 令和 | Z5: 元 | AC5: 年 | AG5: 月 | AK5: 日
B8: 株 式 会 社 玉 川 組 御 中
R9: 請 求 者 | T9: 住 所
C11: 下 記 の と お り 請 求 し ま す 。 | T11: 氏 名
B13: 請求金額￥ | H13: =I47 -> 0
A15: 工 事 名
T16: 電 話 | AC16: 登録番号
E18: 請求内訳（請求明細書 | M18: 枚） | T18: 取引銀行 | AA18: 銀行 | AF18: 支店 | AK18: 口座番号
A21: （ 部門 ： 工事 ・ 機材 ・ 一般 ） | T21: 請求額合計 （ 枚/ | AK21: ）
A23: 項 目 | I23: 金 額 | R23: 相 殺 | W23: 前 渡 金
A26: 消費税 8% | F26: 本 体 | W26: 未収入金
F28: 税 | I28: =+ROUND(I26*0.08,0) -> 0
W29: 売掛金
F30: 税 込 | I30: =+SUM(I26:P29) -> 0
R32: 送 料 ・ 値 引
A33: 消費税 10% | F33: 本 体
F35: 税 | I35: =+ROUND(I33*0.1,0) -> 0 | R35: 振 込 | V35: 北洋・道銀・信金 その他（ ）
F37: 税 込 | I37: =+SUM(I33:P36) -> 0
R38: 手 形 ・ Ｆ ・ 小切手 ・ 集金 | V38: 期日（ / ）
A40: 非課税・税外 | F40: 本 体
A43: 合 計 | F43: 本 体 | I43: =+I26+I33+I40 -> 0
F45: 税 | I45: =+I28+I35 -> 0
F47: 税 込 | I47: =+SUM(I43:P46) -> 0
A52: 決 裁 欄 | I52: 経 理 | P52: 専 務 | U52: 建設部・建築部 | AE52: 総 務 部

Sheet 請求書（明細）見本
O1: 請 求 明 細 書
Y3: 令和 | AA3: 元 | AD3: 年 | AF3: 10 | AI3: 月 | AK3: 31 | AN3: 日
A6: 株式会社 玉 川 組 御 中 | W6: 請 求 者 | X6: 株式会社 ○○建設
A11: 税抜合計￥ | E11: 100000
A13: 納入月日 | D13: 品名（規格・寸法） | O13: 数量 | S13: 単位 | U13: 単価 | Y13: 金額 | AI13: 備考
D14: 舗装工事 10月出来高 | O14: 1 | S14: 式 | U14: 100000 | Y14: 100000
Y24: 小計（税抜） | AF24: 100000
A25: 建設部・建築部 | J25: （作業所長） | M25: 総務部・営業
V28: 工事名 | Y28: ○○宅舗装工事

Sheet 請求書（明細）
O1: 請 求 明 細 書
Y3: 令和 | AD3: 年 | AI3: 月 | AN3: 日
A6: 株式会社 玉 川 組 御 中 | W6: 請 求 者
A11: 税抜合計￥
A13: 納入月日 | D13: 品名（規格・寸法） | O13: 数量 | S13: 単位 | U13: 単価 | Y13: 金額 | AI13: 備考
Y24: 小計（税抜）
A25: 建設部・建築部 | J25: （作業所長） | M25: 総務部・営業
V28: 工事名

Sheet 契約出来高内訳表8% 見本
A1: 契 約 出 来 高 内 訳 表
I2: 工事名 | J2: ○○宅舗装工事
A3: １．契 約 金 額
A4: 項 目 | F4: 本 体 金 額 | H4: 消 費 税 | I4: 合 計
B5: 契約金額 | F5: 1000000 | H5: =ROUND(F5*8%,1) -> 80000 | I5: =SUM(F5:H5) -> 1080000
B6: 変更（増・減）額 | H6: =ROUND(F6*8%,1) -> 0 | I6: =SUM(F6:H6) -> 0
B7: 変更後契約金額 | F7: =F5+F6 -> 1000000 | H7: =H5+H6 -> 80000 | I7: =SUM(F7:H7) -> 1080000
J8: ＊支払条件に保留… 有 （ ％） ・ 無
A9: ２．出来高請求内訳 | J9: 保留予定額 円
A10: 項 目 | F10: 本 体 金 額 | H10: 消 費 税 | I10: 合 計 | K10: （ 内 保 留 金）
C11: 前月迄の請求金額 | D11: 9 | F11: 100000 | H11: =ROUND(F11*8%,1) -> 8000 | I11: =SUM(F11:H11) -> 108000 | K11: （ | M11: ）
H12: 0 | I12: 0 | K12: （ | M12: ）
A13: 出 | H13: 0 | I13: 0 | K13: （ | M13: ）
A14: 来 | H14: 0 | I14: 0 | K14: （ | M14: ）
A15: 高 | H15: 0 | I15: 0 | K15: （ | M15: ）
A16: 内 | H16: 0 | I16: 0 | K16: （ | M16: ）
A17: 訳 | C17: 前月迄の請求合計 | F17: =SUM(F11:G16) -> 100000 | H17: =SUM(H11:H16) -> 8000 | I17: =SUM(I11:J16) -> 108000 | K17: （ | M17: ）
C18: 今月末出来高請求額 | F18: 100000 | H18: =ROUND(F18*8%,1) -> 8000 | I18: =SUM(F18:H18) -> 108000 | K18: （ | M18: ）
C19: 請 求 累 計 （保留金合計） | F19: =IF(F7=0,0,+G19/F7) -> 0.2 | G19: =SUM(F17:G18) -> 200000 | H19: =SUM(H17:H18) -> 16000 | I19: =SUM(G19:H19) -> 216000 | K19: （ | M19: ）
C20: 残 金 | F20: =+F7-G19 -> 800000 | H20: =+H7-H19 -> 64000 | I20: =+I7-I19 -> 864000
J21: ＊保留金は月毎の出来高に対し保留する。
J22: 保留金の支払は、最終支払の翌月一括払。
A24: 支払条件 | D24: 30 | E24: ： | F24: =100-D24 -> 70 | I24: 業者名 | J24: 株式会社 ○○建設

Sheet 契約出来高内訳表 8%
A1: 契 約 出 来 高 内 訳 表
I2: 工事名
A3: １．契 約 金 額
A4: 項 目 | F4: 本 体 金 額 | H4: 消 費 税 | I4: 合 計
B5: 契約金額 | H5: =ROUND(F5*8%,1) -> 0 | I5: =SUM(F5:H5) -> 0
B6: 変更（増・減）額 | H6: =ROUND(F6*8%,1) -> 0 | I6: =SUM(F6:H6) -> 0
B7: 変更後契約金額 | F7: =F5+F6 -> 0 | H7: =H5+H6 -> 0 | I7: =SUM(F7:H7) -> 0
J8: ＊支払条件に保留… 有 （ ％） ・ 無
A9: ２．出来高請求内訳 | J9: 保留予定額 円
A10: 項 目 | F10: 本 体 金 額 | H10: 消 費 税 | I10: 合 計 | K10: （ 内 保 留 金）
C11: 前月迄の請求金額 | H11: =ROUND(F11*8%,1) -> 0 | I11: =SUM(F11:H11) -> 0 | K11: （ | M11: ）
H12: 0 | I12: 0 | K12: （ | M12: ）
A13: 出 | H13: 0 | I13: 0 | K13: （ | M13: ）
A14: 来 | H14: 0 | I14: 0 | K14: （ | M14: ）
A15: 高 | H15: 0 | I15: 0 | K15: （ | M15: ）
A16: 内 | H16: 0 | I16: 0 | K16: （ | M16: ）
A17: 訳 | C17: 前月迄の請求合計 | F17: =SUM(F11:G16) -> 0 | H17: =SUM(H11:H16) -> 0 | I17: =SUM(I11:J16) -> 0 | K17: （ | M17: ）
C18: 今月末出来高請求額 | H18: =ROUND(F18*8%,1) -> 0 | I18: =SUM(F18:H18) -> 0 | K18: （ | M18: ）
C19: 請 求 累 計 （保留金合計） | F19: =IF(F7=0,0,+G19/F7) -> 0 | G19: =SUM(F17:G18) -> 0 | H19: =SUM(H17:H18) -> 0 | I19: =SUM(G19:H19) -> 0 | K19: （ | M19: ）
C20: 残 金 | F20: =+F7-G19 -> 0 | H20: =+H7-H19 -> 0 | I20: =+I7-I19 -> 0
J21: ＊保留金は月毎の出来高に対し保留する。
J22: 保留金の支払は、最終支払の翌月一括払。
A24: 支払条件 | D24: 30 | E24: ： | F24: =100-D24 -> 70 | I24: 業者名

Sheet 契約出来高内訳表 10%
A1: 契 約 出 来 高 内 訳 表
I2: 工事名
A3: １．契 約 金 額
A4: 項 目 | F4: 本 体 金 額 | H4: 消 費 税 | I4: 合 計
B5: 契約金額 | H5: =ROUND(F5*10%,1) -> 0 | I5: =SUM(F5:H5) -> 0
B6: 変更（増・減）額 | H6: =ROUND(F6*10%,1) -> 0 | I6: =SUM(F6:H6) -> 0
B7: 変更後契約金額 | F7: =F5+F6 -> 0 | H7: =H5+H6 -> 0 | I7: =SUM(F7:H7) -> 0
J8: ＊支払条件に保留… 有 （ ％） ・ 無
A9: ２．出来高請求内訳 | J9: 保留予定額 円
A10: 項 目 | F10: 本 体 金 額 | H10: 消 費 税 | I10: 合 計 | K10: （ 内 保 留 金）
C11: 前月迄の請求金額 | H11: =ROUND(F11*10%,1) -> 0 | I11: =SUM(F11:H11) -> 0 | K11: （ | M11: ）
H12: =ROUND(F12*10%,1) -> 0 | I12: 0 | K12: （ | M12: ）
A13: 出 | H13: 0 | I13: 0 | K13: （ | M13: ）
A14: 来 | H14: 0 | I14: 0 | K14: （ | M14: ）
A15: 高 | H15: 0 | I15: 0 | K15: （ | M15: ）
A16: 内 | H16: 0 | I16: 0 | K16: （ | M16: ）
A17: 訳 | C17: 前月迄の請求合計 | F17: =SUM(F11:G16) -> 0 | H17: =SUM(H11:H16) -> 0 | I17: =SUM(I11:J16) -> 0 | K17: （ | M17: ）
C18: 今月末出来高請求額 | H18: =ROUND(F18*10%,1) -> 0 | I18: =SUM(F18:H18) -> 0 | K18: （ | M18: ）
C19: 請 求 累 計 （保留金合計） | F19: =IF(F7=0,0,+G19/F7) -> 0 | G19: =SUM(F17:G18) -> 0 | H19: =SUM(H17:H18) -> 0 | I19: =SUM(G19:H19) -> 0 | K19: （ | M19: ）
C20: 残 金 | F20: =+F7-G19 -> 0 | H20: =+H7-H19 -> 0 | I20: =+I7-I19 -> 0
J21: ＊保留金は月毎の出来高に対し保留する。
J22: 保留金の支払は、最終支払の翌月一括払。
A24: 支払条件 | D24: 30 | E24: ： | F24: =100-D24 -> 70 | I24: 業者名

Sheet 契約出来高内訳表 8%.10%
A1: 契 約 出 来 高 内 訳 表
J2: 工事名
A3: １．契 約 金 額
A4: 項 目 | F4: 本 体 金 額 | H4: 消 費 税 | J4: 合 計
B5: 契約金額 | I5: =ROUND(F5*H5,1) -> 0 | J5: =+F5+I5 -> 0
B6: 変更（増・減）額 | H6: 0.08 | I6: =ROUND(F6*8%,1) -> 0 | J6: =SUM(F6:I6) -> 0.08
H7: 0.1 | I7: =ROUND(F7*10%,1) -> 0 | J7: =SUM(F7:I7) -> 0.1
B8: 変更後契約金額 | F8: =+SUM(F5:G7) -> 0 | H8: =+SUM(I5:I7) -> 0 | J8: =+SUM(J5:K7) -> 0.18
K9: ＊支払条件に保留… 有 （ ％） ・ 無
A10: ２．出来高請求内訳 | K10: 保留予定額 円
A11: 項 目 | F11: 本 体 金 額 | H11: 消 費 税 | J11: 合 計 | L11: （ 内 保 留 金）
C12: 前月迄の請求金額 | I12: =ROUND(F12*H12,1) -> 0 | J12: =+F12+I12 -> 0 | L12: （ | N12: ）
I13: =ROUND(F13*H13,1) -> 0 | J13: =+F13+I13 -> 0 | L13: （ | N13: ）
A14: 出 | I14: 0 | J14: 0 | L14: （ | N14: ）
A15: 来 | I15: 0 | J15: 0 | L15: （ | N15: ）
A16: 高 | I16: 0 | J16: 0 | L16: （ | N16: ）
A17: 内 | I17: 0 | J17: 0 | L17: （ | N17: ）
A18: 訳 | C18: 前月迄の請求合計 | F18: =SUM(F12:G17) -> 0 | H18: =SUM(I12:I17) -> 0 | J18: =SUM(J12:K17) -> 0 | L18: （ | N18: ）
C19: 今月末出来高請求額 | H19: 0.08 | I19: =ROUND(F19*8%,1) -> 0 | J19: =+F19+I19 -> 0 | L19: （ | N19: ）
H20: 0.1 | I20: =ROUND(F20*10%,1) -> 0 | J20: =+F20+I20 -> 0 | L20: （ | N20: ）
C21: 請 求 累 計 （保留金合計） | F21: =IF(F8=0,0,+G21/F8) -> 0 | G21: =SUM(F18:G20) -> 0 | H21: =+H18+I19+I20 -> 0 | J21: =+SUM(J18:K20) -> 0 | L21: （ | N21: ）
C22: 残 金 | F22: =+F8-G21 -> 0 | H22: =+H8-H21 -> 0 | J22: =+J8-J21 -> 0.18
K23: ＊保留金は月毎の出来高に対し保留する。
K24: 保留金の支払は、最終支払の翌月一括払。
A26: 支払条件 | D26: 30 | E26: ： | F26: =100-D26 -> 70 | J26: 業者名

Sheet 契約出来高内訳表 (hidden)
A1: 契 約 出 来 高 内 訳 表
I2: 工事名 | N2: ⇒請負契約をしてる場合に使用する
A3: １．契 約 金 額
A4: 項 目 | F4: 本 体 金 額 | H4: 消 費 税 | I4: 合 計
B5: 契約金額 | I5: =SUM(F5:H5) -> 0
B6: 変更（増・減）額 | I6: =SUM(F6:H6) -> 0
B7: 変更後契約金額 | F7: =F5+F6 -> 0 | H7: =H5+H6 -> 0 | I7: =SUM(F7:H7) -> 0
J8: ＊支払条件に保留… 有 （ ％） ・ 無
A9: ２．出来高請求内訳 | J9: 保留予定額 円
A10: 項 目 | F10: 本 体 金 額 | H10: 消 費 税 | I10: 合 計 | K10: （ 内 保 留 金）
C11: 第１回 | I11: =SUM(F11:H11) -> 0 | K11: （ | M11: ）
C12: 第２回 | I12: 0 | K12: （ | M12: ）
A13: 出 | C13: 第３回 | I13: 0 | K13: （ | M13: ）
A14: 来 | C14: 第４回 | I14: 0 | K14: （ | M14: ）
A15: 高 | C15: 第５回 | I15: 0 | K15: （ | M15: ）
A16: 内 | C16: 第６回 | I16: 0 | K16: （ | M16: ）
A17: 訳 | C17: 前月迄の請求合計 | F17: =SUM(F11:G16) -> 0 | H17: =SUM(H11:H16) -> 0 | I17: =SUM(I11:J16) -> 0 | K17: （ | M17: ）
C18: 今月末出来高請求額 | I18: =SUM(F18:H18) -> 0 | K18: （ | M18: ）
C19: 請 求 累 計 （保留金合計） | F19: =IF(F7=0,0,+G19/F7) -> 0 | G19: =SUM(F17:G18) -> 0 | H19: =SUM(H17:H18) -> 0 | I19: =SUM(G19:H19) -> 0 | K19: （ | M19: ）
C20: 残 金 | F20: =+F7-G19 -> 0 | H20: =+H7-H19 -> 0 | I20: =+I7-I19 -> 0
J21: ＊保留金は月毎の出来高に対し保留する。
J22: 保留金の支払は、最終支払の翌月一括払。
A24: 支払条件 | D24: 30 | E24: ： | F24: =100-D24 -> 70 | I24: 業者名

Sheet 契約出来高内訳表 見本 (hidden)
A1: 契 約 出 来 高 内 訳 表
I2: 工事名 | J2: ○○宅舗装工事 | N2: ⇒請負契約をしてる場合に使用する
A3: １．契 約 金 額
A4: 項 目 | F4: 本 体 金 額 | H4: 消 費 税 | I4: 合 計
B5: 契約金額 | F5: 1000000 | H5: =ROUND(F5*10%,1) -> 100000 | I5: =SUM(F5:H5) -> 1100000
B6: 変更（増・減）額 | H6: =ROUND(F6*10%,1) -> 0 | I6: =SUM(F6:H6) -> 0
B7: 変更後契約金額 | F7: =F5+F6 -> 1000000 | H7: =H5+H6 -> 100000 | I7: =SUM(F7:H7) -> 1100000
J8: ＊支払条件に保留… 有 （ ％） ・ 無
A9: ２．出来高請求内訳 | J9: 保留予定額 円
A10: 項 目 | F10: 本 体 金 額 | H10: 消 費 税 | I10: 合 計 | K10: （ 内 保 留 金）
C11: 第１回 | D11: 9 | F11: 100000 | H11: =ROUND(F11*10%,1) -> 10000 | I11: =SUM(F11:H11) -> 110000 | K11: （ | M11: ）
C12: 第２回 | H12: 0 | I12: 0 | K12: （ | M12: ）
A13: 出 | C13: 第３回 | H13: 0 | I13: 0 | K13: （ | M13: ）
A14: 来 | C14: 第４回 | H14: 0 | I14: 0 | K14: （ | M14: ）
A15: 高 | C15: 第５回 | H15: 0 | I15: 0 | K15: （ | M15: ）
A16: 内 | C16: 第６回 | H16: 0 | I16: 0 | K16: （ | M16: ）
A17: 訳 | C17: 前月迄の請求合計 | F17: =SUM(F11:G16) -> 100000 | H17: =SUM(H11:H16) -> 10000 | I17: =SUM(I11:J16) -> 110000 | K17: （ | M17: ）
C18: 今月末出来高請求額 | F18: 100000 | H18: =ROUND(F18*10%,1) -> 10000 | I18: =SUM(F18:H18) -> 110000 | K18: （ | M18: ）
C19: 請 求 累 計 （保留金合計） | F19: =IF(F7=0,0,+G19/F7) -> 0.2 | G19: =SUM(F17:G18) -> 200000 | H19: =SUM(H17:H18) -> 20000 | I19: =SUM(G19:H19) -> 220000 | K19: （ | M19: ）
C20: 残 金 | F20: =+F7-G19 -> 800000 | H20: =+H7-H19 -> 80000 | I20: =+I7-I19 -> 880000
J21: ＊保留金は月毎の出来高に対し保留する。
J22: 保留金の支払は、最終支払の翌月一括払。
A24: 支払条件 | D24: 30 | E24: ： | F24: =100-D24 -> 70 | I24: 業者名 | J24: 株式会社 ○○建設
